{"text_format":"1","workbook":"xlsx","n_sheets":11,"sheets":["LISEZ MOI","Cadrage projet","Matrice des responsabilités","Planning des jalons du projet","GANTT","Budget","Analyse des risques","Mesure du risque","Performance Projet","Plan d'actions","Bilan projet"],"not_rendered":{"charts":4,"images":2,"macros":1,"external_links":1,"defined_names":17,"comments":3,"pivot_tables":0},"unopened":[],"bounds":{"document_bytes":16777216,"sheet_cells":100000,"rows_first":2000,"rows_last":500,"rows_between":2000,"halvings":0,"cell_chars":16384,"cell_head_chars":4096},"cells_cut":0,"cells_raw":0,"read":"whole","date_system":"1900"}

{"sheet":"LISEZ MOI","index":0,"n_rows":29,"n_cols":1,"rows_kept":29,"cut":false,"hidden":false,"merged":[[28,0,28,6],[13,0,13,6],[16,0,16,6],[19,0,19,6],[22,0,22,6],[21,0,21,6],[9,0,9,6],[24,0,24,6],[12,0,12,6],[27,0,27,6],[1,0,1,6],[4,0,4,6],[7,0,7,6],[10,0,10,6],[25,0,25,6],[0,0,0,6],[15,0,15,6],[3,0,3,6],[18,0,18,6],[6,0,6,6]]}
["CADRAGE PROJET"]
["Phase initiale d'un lancement d'un projet. \n\nElle sert à définir les contours du projet et à poser les bases pour la suite grâce à plusieurs éléments :\n- Contexte\n- Description des besoins\n- Budget\n- Bénéfices attendus\n- Objectifs et livrables attendus\n- Entités et acteurs concernés\n- Hypothèses, contraintes et périmètres\n- Risques majeurs"]
[]
["MATRICE DES RESPONSABILITES"]
["Matrice qui permet de définir les responsabilités de chacun au sein du projet (Matrice RACI)\n\nR pour  Responsable : c'est le garant de la bonne réalisation du lot de travaux. Il peut également être Acteur\nA pour Acteur : il réalise le lot de travaux\nC pour Consulté : c'est un expert que l'on consulte pour obtenir une information ou une validation technique, il n'a pas de tâche particulière à réaliser\nI pour Informé : c'est une personne à qui on diffuse un document ou que l'on informe d'un lot de travaux réalisé ou à venir"]
[]
["PLANNING DES JALONS DU PROJET"]
["C'est un outil qui permet de créer un planning avec les étapes clés du projet (par ex. début projet, réunions, rendu de documents…)\nIl permet ainsi de piloter le projet dans le temps et d'anticiper les étapes à venir (échéance importante, date de fin de projet).\n\nC'est un outil automatique.\nIl suffit de saisir vos données dans le tableau situé sus la frise. Celle-ci se mettra à jour automatiquement."]
[]
["GANTT"]
["Le diagramme de GANTT est un outil de plannification détaillé par tâches.\nIl convient de travailler sur celui-ci une fois les jalons posés (planning des jalons du projet).\n\nLes tâches sont à remplir au fur et à mesure, et peuvent être liées entre elles. \n\nPour élaborer l'organigramme des tâches, entrer chaque tâche dans la colonne LIBELLE. Vous pouvez créer une arborescence en créant un ou plusieurs espaces au début du libellé d'une sous tâche qui se trouve juste en dessous de la tâche à laquelle elle est associée.\nPour tracer le GANTT, entrer les liens entre les tâches en mettant les numéros de celles qui les précèdent dans les cases PREDECESSEUR si cette tâche ne peut commencer que lorsque la précédente est terminée.\n\nPour que le chemin critique soit calculé automatiquement (apparaitra en ROUGE) et que le planning soit à jour, cliquer sur le bouton CALCULER GANTT.\n\nDes lignes correpondants à des tâches peuvent être ajoutées ou supprimées du tableau.\nUnités de temps : à remplir selon besoins (planning en Jour, Semaine, Mois ou Année)"]
[]
["BUDGET"]
["Tableau permettant de définir les budgets alloués par tâches et de les suivre au cours du projet."]
[]
["ANALYSE DES RISQUES"]
["Un risque est un évènement susceptible de se produire et qui aurait un impact sur au moins 1 des objectifs du projet (Qualité, Coût ou Délais).\nUn risque peut avoir 2 dimensions essentielles : \n- Son impact (gravité)\n- La probabilité qu'il se produise\n\nUne liste d'exemples de typologie de risques peut-être consultée dans l'onglet TYPE DE RISQUES.\nAu-delà de l'analyse de la gravité et de la probalité d'un risque, cet outil permet également d'anticiper les risques et de savoir quelle type d'action menée face à eux (éviter, atténuer, transférer et gérer)."]
[]
["MESURE DU RISQUE"]
["Ce graphique est généré automatiquement à partir des données indiquées dans ANALYSE DU RISQUES.\nIl permet d'évaluer le niveau du risque à l'aide d'un graphique."]
[]
["PERFORMANCE PROJET"]
["Cet outil permet d'avoir une vision du déroulé du projet à date. \nIl permet de juger de la satisfaction du projet à travers plusieurs thèmes (Délai, coûts, qualité…) \nIl permet aussi de faire un point sur les réalisations et les prochaines étapes à venir.\n\nCet outil peut servir de base dans un compte-rendu comme point d'étape."]
[]
["PLAN D'ACTIONS"]
["Face à des points critiques pendant le projet, cet outil permet d'estimer l'impact sur le projet et les actions à mener pour y remédier."]
[]
["BILAN PROJET"]
["Un fois le projet finalisé, ce tableau à compléter permet d'indiquer ce qui c'est bien passé dans le projet afin de capitaliser pour les projets futurs. \n\nEn parallèle, il permet d'avoir un recul sur ce qui s'est moins bien passé et qu'il faudra éviter de reproduire sur le prochain projet."]

{"sheet":"Cadrage projet","index":1,"n_rows":22,"n_cols":10,"rows_kept":22,"cut":false,"hidden":false,"merged":[[22,0,22,6],[22,7,22,10],[23,0,23,6],[23,7,23,10],[19,0,19,6],[19,7,19,10],[20,0,20,6],[20,7,20,10],[21,0,21,6],[21,7,21,10],[16,0,16,6],[16,8,16,10],[4,5,4,6],[4,7,4,8],[7,0,7,2],[8,0,8,4],[8,6,8,10],[10,6,10,10],[11,0,11,4],[11,6,11,10],[12,0,12,4],[13,0,13,10],[15,0,15,4],[0,0,0,10],[1,1,1,3],[1,6,1,7],[1,9,1,10],[3,5,3,6],[3,7,3,8]]}
["CADRAGE PROJET"]
["Nom du projet :","Projet",null,null,"Identifiant projet: ",null,"P1",null,"Dernière révision : ","2013-01-01"]
[]
["Phases","Décrire ici les phases principales du projet et les dates de début de phases prévues (jalons)"]
["Dates début prévues"]
[]
[]
["CONTEXTE DU PROJET",null,null,null,null,null,"DESCRIPTION DES BESOINS"]
["Décrire les raisons qui poussent au lancement du projet (changement de réglementation, lancement de produit, innovation, réduction des coûts, réduction des risques,...) \nSi le projet s'inscrit dans un projet plus vaste donner des informations sur ce projet (contexte, objectifs et périmètre du projet) ",null,null,null,null,null,"Décrivez les besoins du projet :\n- Besoins principaux et secondaires du projet en terme de qualité\n- Les objectifs de qualité doivent être décrits en terme de valeur ajoutée pour l'entreprise et pour les clients (nouvelle cible marché, nouveaux services, performance opérationnelle, facilité d'utilisation, conformité à la réglementation, réduction des risques,...)\n\n\n"]
[]
["BUDGET PROJET",null,null,null,null,null,"BENEFICES ATTENDUS / PROFITS DU PROJET"]
["Décrire ici le budget total estimé du projet ainsi que les hypothèses pricipales du projet (le budget peut être détaillé dans l'ongle \"Budget\"",null,null,null,null,null,"Décrire ici les bénéfices quantitatifs (chiffrés) ou qualitatifs du projet."]
["OBJECTIFS DU PROJET ET LIVRABLES ATTENDUS"]
["Décrire ici comment le projet va être mis en oeuvre\nDécrire d'une façon simple la solution retenue pour remplir les objectifs du projet et les livrables attendus ainsi que leurs performances\nDécrire les solutions alternatives envisagées"]
[]
["ENTITES ET ACTEURS CONCERNES PAR LE PROJET",null,null,null,null,null,null,null,"HYPOTHESES / CONTRAINTES / PERIMETRE"]
["Définir les entités externes et internes concernées et impliqués dans le projet (Client, Sponsor, Chef de projet, équipe projet, Comité de pilotage, partenaires…)\nDécrire l'organisation du projet et de l'équipe\nSi possible évaluer une charge associée à l'implication dans le projet\n",null,null,null,null,null,null,null,"Décrire toutes les hypothèses et contraintes du projet qui le dimensionnent (Une contrainte est un élément qui n'est pas sous le contrôle du projet et qui lui est imposée). \n"]
[]
["RISQUES MAJEURS DU PROJET",null,null,null,null,null,null,"MOYENS DE REDUCTION DES RISQUES"]
["Décrire ici un risque majeur du projet ",null,null,null,null,null,null,"Décrire ici les actions mises en œuvre afin de réduire le risque"]
["Décrire ici un risque majeur du projet ",null,null,null,null,null,null,"Décrire ici les actions mises en œuvre afin de réduire le risque"]
["Décrire ici un risque majeur du projet ",null,null,null,null,null,null,"Décrire ici les actions mises en œuvre afin de réduire le risque"]

{"sheet":"Matrice des responsabilités","index":2,"n_rows":29,"n_cols":12,"rows_kept":29,"cut":false,"hidden":false,"merged":[[0,1,0,11],[1,3,1,4],[1,5,1,6],[1,7,1,9],[1,10,1,11]]}
[null,"MATRICE DES RESPONSABILITES"]
[null,"Nom du projet :",{"$f":"'Cadrage projet'!$B$2","v":"Projet"},"Identifiant projet  : ",null,{"$f":"'Cadrage projet'!$G$2","v":"P1"},null,"Dernière révision : ",null,null,"2013-01-01"]
[]
[null,null,null,"Chef de projet","Equipier 1","Equipier 2","Equipier 3","Equipier 4","Equipier 5","Equipier 6","Autres","Autres"]
[null,"Tâches","Détail tâche (livrables)"]
[null,"Tâche 1",null,"I","R",null,"A",null,"A"]
[null,"Tâche 2"]
[null,"Tâche 3"]
[null,"Tâche 4",null,"R","C","I",null,"A"]
[null,"Tâche 5"]
[null,"Tâche 6"]
[null,"Tâche 7"]
[null,"Tâche 8"]
[null,"Tâche 9"]
[null,"Tâche 10"]
[]
[]
[]
[]
[]
[]
[]
[]
[]
[]
[null,null,"R  ","Responsable"]
[null,null,"A  ","Acteur engagé"]
[null,null,"C  ","Consulté (Consulted)"]
[null,null,"I  ","Informé"]

{"sheet":"Planning des jalons du projet","index":3,"n_rows":31,"n_cols":6,"rows_kept":31,"cut":false,"hidden":false,"merged":[[18,7,21,11]]}
[null,"Planning de jalons du projet XXX"]
[]
[]
[]
[]
[]
[]
[]
[]
[]
[]
[]
[]
[]
[]
[null,"Jalons du projet"]
[]
[null,"Date","Jalon","Livrable","Position","Référence"]
[null,"2017-02-05","Début du projet",null,20,{"$f":"0","v":0}]
[null,"2017-04-24","Jalon 1","Livrable 1",10,{"$f":"0","v":0}]
[null,"2017-04-24","Jalon 2","Livrable 2",-10,{"$f":"0","v":0}]
[null,"2017-05-01","Jalon 3","Livrable 3",25,{"$f":"0","v":0}]
[null,"2017-05-15","Jalon 4","Livrable 4",-15,{"$f":"0","v":0}]
[null,"2017-05-15","Jalon 5","Livrable 5",15,{"$f":"0","v":0}]
[null,"2017-06-15","Jalon 6","Livrable 6",-15,{"$f":"0","v":0}]
[null,"2017-06-30","Jalon 7","Livrable 7",15,{"$f":"0","v":0}]
[null,"2017-07-15","Jalon 8","Livrable 8",-20,{"$f":"0","v":0}]
[null,"2017-07-30","Jalon 9","Livrable 9",20,{"$f":"0","v":0}]
[null,"2017-08-23","Jalon 10","Livrable 10",-15,{"$f":"0","v":0}]
[null,"2017-08-11","Jalon 11","Livrable 11",10,{"$f":"0","v":0}]
[null,"2017-08-31","Fin du projet",null,5,{"$f":"0","v":0}]

{"sheet":"GANTT","index":4,"n_rows":18,"n_cols":26,"rows_kept":18,"cut":false,"hidden":false,"merged":[[5,6,5,10],[2,6,2,9]]}
["PROJET :",null,null,"CONGRES",null,null,null,null,null,null,null,null,"Début affichage","Fin affichage"]
["CHEF DE PROJET",null,null,null,null,null,null,null,null,null,null,null,0,16]
["Date d'état",null,null,0,null,null,"Mode d'emploi",null,null,null,null,null,"Unité de temps","S"]
["Date début :",null,null,0]
["Date fin :",null,null,15,null,null,null,null,null,null,null,null,null,null,null,null,null,null,null,null,null,null,1]
["N°","Libellé",1,"Durée",null,"Durée","Prédécesseurs",null,null,null,null,"Critique","Début au plus tôt forcé","% avance-ment",{"$f":"N6*F6","v":{"$error":"#VALUE!"}},"Début","Fin","Avancement (date)","Calcul chemin critique début au plus tard","Calcul chemin critique fin au plus tard",{"$f":"F6-O6","v":{"$error":"#VALUE!"}},"Indicateur chemin critique",1,"Durée initiale","Date début initial","Pour trace GANTT initial"]
[1,"Tache 1",1,null,null,15,null,null,null,null,null,0,null,null,{"$f":"N7*F7","v":0},0,15,null,0,15,{"$f":"F7-O7","v":15},1,1,12,0,0]
[2," tache 1.1",2,null,null,5,null,null,null,null,null,0,null,null,{"$f":"N8*F8","v":0},0,5,null,10,15,{"$f":"F8-O8","v":5},1,1,3,0,0]
[3,"  tache 1.1.1",3,2,null,2,null,null,null,null,null,1,null,null,{"$f":"N9*F9","v":0},0,2,null,0,2,{"$f":"F9-O9","v":2},1,1]
[4,"  tache 1.1.2",3,3,null,3,{"$f":"A9","v":3},null,null,null,null,1,null,null,{"$f":"N10*F10","v":0},2,5,null,2,5,{"$f":"F10-O10","v":3},1,1]
[5," tache 1.3",2,2,null,2,{"$f":"A10","v":4},null,null,null,null,0,null,null,{"$f":"N11*F11","v":0},5,7,null,13,15,{"$f":"F11-O11","v":2},1,1]
[6," tache 1.2",2,null,null,6,null,null,null,null,null,0,null,null,{"$f":"N12*F12","v":0},5,11,null,9,15,{"$f":"F12-O12","v":6},1,1,5,3,0]
[7,"  tache 1.2.1",3,2,null,2,{"$f":"A10","v":4},null,null,null,null,1,null,null,{"$f":"N13*F13","v":0},5,7,null,5,7,{"$f":"F13-O13","v":2},1,1]
[8,"  tache 1.2.2",3,2,null,2,{"$f":"A13","v":7},null,null,null,null,1,null,null,{"$f":"N14*F14","v":0},7,9,null,7,9,{"$f":"F14-O14","v":2},1,1]
[9,"  tache 1.2.3",3,2,null,2,{"$f":"A14","v":8},null,null,null,null,1,null,null,{"$f":"N15*F15","v":0},9,11,null,9,11,{"$f":"F15-O15","v":2},1,1]
[10," tache 2",2,null,null,4,null,null,null,null,null,0,null,null,{"$f":"N16*F16","v":0},11,15,null,11,15,{"$f":"F16-O16","v":4},1,1]
[11,"  tache 2.1",3,2,null,2,12,null,null,null,null,1,null,null,{"$f":"N17*F17","v":0},13,15,null,13,15,{"$f":"F17-O17","v":2},1,1]
[12,"  tache 2.2",3,2,null,2,9,null,null,null,null,1,null,null,{"$f":"N18*F18","v":0},11,13,null,11,13,{"$f":"F18-O18","v":2},1,1]

{"sheet":"Budget","index":5,"n_rows":24,"n_cols":10,"rows_kept":24,"cut":false,"hidden":false,"merged":[[0,0,0,9],[1,2,1,3],[1,5,1,8]]}
["BUDGET"]
["Nom du projet :",{"$f":"'Cadrage projet'!$B$2","v":"Projet"},"Identifiant projet  : ",null,{"$f":"'Cadrage projet'!$G$2","v":"P1"},"Dernière révision : ",null,null,null,"2013-01-01"]
["Date de mise à jour : "]
[]
[]
[null,null,null,null,1,2,3,"4=3+2","5=4-1"]
["Liste des tâches","Achats de matériels / prestations ","Nbr de jours","taux journalier","budget initial (en euros)","engagé","reste à engager","réestimation à fin de projet","écart","commentaires"]
["Tâche 1",10000,10,1000,{"$f":"B8+(C8*D8)","v":20000},20000,5000,{"$f":"F8+G8","v":25000},{"$f":"H8-E8","v":5000}]
["Tâche 2",0,20,800,{"$f":"B9+(C9*D9)","v":16000},16000,0,{"$f":"F9+G9","v":16000},{"$f":"H9-E9","v":0}]
["Tâche 3",6000,15,600,15000,10000,6000,16000,1000]
["Tâche 4",null,null,null,0,null,null,0,0]
["Tâche 5",null,null,null,0,null,null,0,0]
["Tâche 6",null,null,null,0,null,null,0,0]
["Tâche 7",null,null,null,0,null,null,0,0]
["Tâche 8",null,null,null,0,null,null,0,0]
["Tâche 9",null,null,null,0,null,null,0,0]
[null,null,null,null,0,null,null,0,0]
[null,null,null,null,0,null,null,0,0]
[null,null,null,null,0,null,null,0,0]
[null,null,null,null,0,null,null,0,0]
[null,null,null,null,0,null,null,0,0]
[null,null,null,null,0,null,null,0,0]
[null,null,null,null,0,null,null,0,0]
["TOTAL",null,null,null,{"$f":"SUM(E8:E23)","v":51000},{"$f":"SUM(F8:F23)","v":46000},{"$f":"SUM(G8:G23)","v":11000},{"$f":"SUM(H8:H23)","v":57000},{"$f":"SUM(I8:I23)","v":6000}]

{"sheet":"Analyse des risques","index":6,"n_rows":15,"n_cols":26,"rows_kept":15,"cut":false,"hidden":false,"merged":[]}
["Analyse des risques",null,null,null,null,null,null,null,null,null,null,null,null,null,"Eviter","Définition du besoin","Ressources","Sous-traitance","Définition du projet","Planification","Technologie","Marché","Organisation","Compétences","Communication","Responsabilisation"]
["Projet:",null,"Chef de projet : ",null,"Site:",null,null,"Date: ",null,null,null,null,null,"Faible","Atténuer"]
[null,null,null,null,null,null,null,"Version:",null,null,null,null,null,"Moyenne","Transférer"]
[null,null,null,null,null,null,null,null,null,null,null,null,null,"Forte","Gérer"]
["N°","Type de risque","Description","Gravité","Probabilité","Criticité","Type d'action","Action","Responsable","Échéance",null,"Gravité","Probabilité"]
[1,"Organisation","Risque  1","Moyenne","Faible",{"$f":"IF($N6=0,\"\",IF(OR($N6=1,$N6=2),\"vert\",IF(OR(AND($N6=3,$M6=3),$N6=4),\"Orange\",\"Rouge\")))","v":"vert"},"Eviter",null,null,null,null,{"$f":"IF(D6=\"Faible\",1,IF(D6=\"Moyenne\",2,IF(D6=\"Forte\",3,0)))","v":2},{"$f":"IF(E6=\"Faible\",1,IF(E6=\"Moyenne\",2,IF(E6=\"Forte\",3,0)))","v":1},{"$f":"L6*M6","v":2}]
[2,"Technologie","Risque  2","Moyenne","Moyenne",{"$f":"IF($N7=0,\"\",IF(OR($N7=1,$N7=2),\"vert\",IF(OR(AND($N7=3,$M7=3),$N7=4),\"Orange\",\"Rouge\")))","v":"Orange"},"Eviter",null,null,null,null,{"$f":"IF(D7=\"Faible\",1,IF(D7=\"Moyenne\",2,IF(D7=\"Forte\",3,0)))","v":2},2,{"$f":"L7*M7","v":4}]
[3,"Ressources","Risque  3","Faible","Faible","vert","Gérer",null,null,null,null,1,1,1]
[4,null,null,null,null,"",null,null,null,null,null,0,0,0]
[5,null,null,null,null,"",null,null,null,null,null,0,0,0]
[6,null,null,null,null,"",null,null,null,null,null,0,0,0]
[7,null,null,null,null,"",null,null,null,null,null,0,0,0]
[8,null,null,null,null,"",null,null,null,null,null,0,0,0]
[9,null,null,null,null,"",null,null,null,null,null,0,0,0]
[10,null,null,null,null,"",null,null,null,null,null,0,0,0]

{"sheet":"Mesure du risque","index":7,"n_rows":3,"n_cols":4,"rows_kept":3,"cut":false,"hidden":false,"merged":[[1,2,1,5]]}
[]
[null,null,"EVALUATION DES RISQUES"]
[null,null,null,{"$f":"'Analyse des risques'!$A$2","v":"Projet:"}]

{"sheet":"Performance Projet","index":8,"n_rows":39,"n_cols":10,"rows_kept":39,"cut":false,"hidden":false,"merged":[[39,1,45,9],[10,5,10,9],[12,5,12,9],[14,5,14,9],[16,5,16,9],[21,1,27,9],[30,1,36,9],[8,5,8,9],[0,1,0,9],[1,2,1,4],[1,5,1,6],[3,5,3,9],[6,5,6,9]]}
[null,"PERFORMANCE PROJET"]
[null,"Nom du projet :","Projet",null,null,"Identifiant projet: ",null,"P1","Dernière révision : ","2013-01-01"]
[]
[null,"Thème",null,"Situation",null,"Commentaires "]
[]
[]
[null,"Situation générale du projet ",null,"J"]
[]
[null,"Délai",null,"K"]
[]
[null,"Coûts",null,"L"]
[]
[null,"Qualité ",null,"J"]
[]
[null,"Périmètre / Avenants ",null,"L"]
[]
[null,"Ressources",null,"J"]
[]
[]
[]
[null,"FAITS MARQUANTS - PRINCIPALES REALISATIONS "]
[]
[]
[]
[]
[]
[]
[]
[]
[null,"PROCHAINES ETAPES "]
[]
[]
[]
[]
[]
[]
[]
[]
[null,"POINTS CRITIQUES"]

{"sheet":"Plan d'actions","index":9,"n_rows":21,"n_cols":8,"rows_kept":21,"cut":false,"hidden":false,"merged":[[4,7,5,7],[0,0,0,7],[1,0,1,1],[1,6,1,7],[2,5,2,6],[4,0,5,0],[4,1,5,1],[4,2,5,2],[4,3,5,3],[4,5,5,5],[4,6,5,6]]}
["PLAN D'ACTIONS"]
["Nom du projet :",null,null,"Projet",null,"Identifiant projet: ","P1"]
[null,null,null,null,null,"Dernière révision : ",null,"2013-01-01"]
[]
["N°","Problèmes / Faits ","Impact Qualité / Coûts / Délais","Action / Decision","(Ergebnis)","Responsable","Date","Etat"]
["Nr.",null,null,null,null,"mit Termin"]
[1,null,null,null,null,null,null,"OUI"]
[2,null,null,null,null,null,null,"NON"]
[3,null,null,null,null,null,null,"EC"]
[4]
[5]
[6]
[7]
[8]
[9]
[10]
[11]
[12]
[13]
[14]
[15]

{"sheet":"Bilan projet","index":10,"n_rows":24,"n_cols":10,"rows_kept":24,"cut":false,"hidden":false,"merged":[[24,1,24,9],[0,1,0,9],[1,2,1,4],[1,5,1,6],[3,5,3,9],[6,5,6,9],[8,5,8,9],[10,5,10,9],[12,5,12,9],[14,5,14,9],[16,5,16,9],[21,1,21,9]]}
[null,"BILAN DU PROJET"]
[null,"Nom du projet :","Projet",null,null,"Identifiant projet: ",null,"P1","Dernière révision : ","2013-01-01"]
[]
[null,"Thème",null,"Situation",null,"Commentaires "]
[]
[]
[null,"Situation générale du projet ",null,"J"]
[]
[null,"Délai",null,"K"]
[]
[null,"Coûts",null,"L"]
[]
[null,"Qualité ",null,"J"]
[]
[null,"Périmètre / Avenants ",null,"L"]
[]
[null,"Ressources",null,"J"]
[]
[]
[]
[null,"POINTS FORTS ET POINTS FAIBLES DU PROJET"]
[]
[]
[null,"BONNES PRATIQUES ET SUGGESTIONS D'AMELIORATION POUR LES PROJETS FUTURS"]